bitfinex/quotes_ETHUSD_20240822
["timestamp","ask_amount","ask_price","bid_price","bid_amount"]
[1724333303301,17.36054456,2630.0,2629.9,8.25140901]
[1724333303728,14.96772725,2630.0,2629.9,8.25140901]
[1724333304586,14.96772725,2630.0,2629.9,8.30555848]
[1724333305414,17.36126899,2630.0,2629.9,8.30555848]
[1724333305811,17.36126899,2630.0,2629.9,8.35528472]
[1724333306013,17.36126899,2630.0,2629.9,8.40311847]
[1724333306227,17.3612376,2630.0,2629.9,8.40311847]
[1724333307513,17.3612376,2630.0,2629.9,8.45066912]
[1724333307729,17.3612376,2630.0,2629.9,8.49810824]
[1724333308108,12.9898376,2630.0,2629.9,8.49810824]
[1724333308626,10.0,2630.0,2629.9,8.49810824]
[1724333309138,10.0,2630.0,2629.9,8.5453775]
[1724333309472,10.0,2630.0,2629.9,8.59234479]
[1724333310231,10.0,2630.0,2629.9,8.63661662]
[1724333311885,10.0,2630.0,2629.9,8.68059677]
[1724333312225,11.99492762,2630.0,2629.9,8.68059677]
[1724333312610,11.99492762,2630.0,2629.9,8.7241291]
[1724333312985,11.99492762,2630.0,2629.9,8.76717415]
[1724333313183,11.59587076,2630.0,2629.9,22.26960857]
[1724333313402,10.0,2630.0,2629.9,22.26960857]
[1724333314131,10.0,2630.0,2629.9,20.31860857]
[1724333314489,10.0,2630.0,2629.9,14.06588857]
[1724333314685,11.59587076,2630.0,2629.9,8.76717415]
[1724333315010,11.59587076,2630.0,2629.9,8.79562321]
[1724333315199,11.59587076,2630.0,2629.9,8.82280261]
[1724333315401,11.59587076,2630.0,2629.9,12.62522261]
[1724333315606,10.0,2630.0,2629.9,12.62522261]
[1724333316402,10.0,2630.0,2629.9,13.92375075]
[1724333316905,10.0,2630.0,2629.9,13.93963528]
[1724333318184,10.0,2630.0,2629.9,13.94875284]
[1724333320491,10.0,2630.0,2629.9,8.8478047]
[1724333320712,11.59587076,2630.0,2629.9,8.8478047]
[1724333320937,10.0,2630.0,2629.9,8.8478047]
[1724333321438,11.59587076,2630.0,2629.9,8.8478047]
[1724333322876,11.59587076,2630.0,2629.9,12.6502247]
[1724333323052,10.0,2630.0,2629.9,14.54054617]
[1724333323632,10.0,2630.0,2629.9,18.34296617]
[1724333324346,10.0,2630.0,2629.9,14.54054617]
[1724333324528,10.0,2630.0,2629.9,12.6502247]
[1724333325242,10.0,2630.0,2629.9,16.4526447]
[1724333325487,10.0,2630.0,2629.9,12.6502247]
[1724333326183,10.0,2630.0,2629.9,16.4526447]
[1724333327989,10.0,2630.0,2629.9,12.6502247]
[1724333328197,10.0,2630.0,2629.9,14.73562317]
[1724333328943,10.0,2630.0,2629.9,18.53804317]
[1724333329205,10.0,2630.0,2629.9,14.73562317]
[1724333331698,10.0,2630.0,2629.9,16.68662317]
[1724333335078,10.0,2630.0,2629.9,20.48776541]
[1724333341573,10.0,2630.0,2629.9,22.78406541]
[1724333341980,10.0,2630.0,2629.9,20.48776541]
[1724333344831,10.0,2630.0,2629.9,22.76326541]
[1724333349535,10.0,2630.0,2629.9,26.56568541]
[1724333351030,10.0,2630.0,2629.9,30.36810541]
[1724333351496,10.0,2630.0,2629.9,34.27470621]
[1724333351702,10.0,2630.0,2629.9,34.27470023]
[1724333352846,10.0,2630.0,2629.9,27.97128023]
[1724333352994,10.0,2630.0,2629.9,29.56568541]
[1724333353700,10.0,2630.0,2629.9,30.22664231]
[1724333354029,10.0,2630.0,2629.9,29.87004268]
[1724333354218,10.0,2630.0,2629.9,30.22660618]
[1724333354431,10.0,2630.0,2629.9,34.57902618]
[1724333354799,10.0,2630.0,2629.9,31.28513]
[1724333355001,10.0,2630.0,2629.9,30.9285665]
[1724333355715,10.0,2630.0,2629.9,31.18632174]
[1724333355908,10.0,2630.0,2629.9,34.48021792]
[1724333356109,10.0,2630.0,2629.9,34.83664458]
[1724333356415,10.0,2630.0,2629.9,34.83664617]
[1724333356617,10.0,2630.0,2629.9,31.03422617]
[1724333357018,10.0,2630.0,2629.9,29.08322617]
[1724333357219,10.0,2630.0,2629.9,31.03422617]
[1724333357957,10.0,2630.0,2629.9,29.08322617]
[1724333358120,10.0,2630.0,2629.9,25.76689945]
[1724333358504,10.0,2630.0,2629.9,20.01347945]
[1724333358737,10.0,2630.0,2629.9,9.40863945]
[1724333358738,12.2886,2630.0,2629.9,9.40863945]
[1724333359341,13.88447076,2630.0,2629.9,9.40863945]
[1724333359549,13.88447076,2630.0,2629.9,13.21105945]
[1724333359708,12.2886,2630.0,2629.9,13.21105945]
[1724333360961,12.2886,2630.0,2629.9,17.01347945]
[1724333363625,12.2886,2630.0,2629.9,13.21105945]
[1724333366128,12.2886,2630.0,2629.9,13.24965077]
[1724333366353,12.2886,2630.0,2629.9,17.05207077]
[1724333366557,10.0,2630.0,2629.9,17.05207077]
[1724333367176,10.0,2630.0,2629.9,23.40816685]
[1724333367665,10.0,2630.0,2629.9,23.43385944]
[1724333369675,10.0,2630.0,2629.9,19.63143944]
[1724333369975,10.0,2630.0,2629.9,20.88018336]
[1724333375705,10.0,2630.0,2629.9,23.18548336]
[1724333375908,10.0,2630.0,2629.9,35.17062451]
[1724333376052,10.0,2630.0,2629.9,34.08933431]
[1724333376253,10.0,2630.0,2629.9,31.23403431]
[1724333376597,10.0,2630.0,2629.9,27.44155709]
[1724333376747,10.0,2630.0,2629.9,20.77008336]
[1724333376953,12.4305,2630.0,2629.9,13.16524336]
[1724333377292,12.4305,2630.0,2629.9,16.96766336]
[1724333380991,10.0,2630.0,2629.9,20.77008336]
[1724333384634,10.0,2630.0,2629.9,22.72008336]
[1724333385526,10.0,2630.0,2629.9,24.9920917]
[1724333385946,10.0,2630.0,2629.9,25.34894519]
[1724333386296,10.0,2630.0,2629.9,24.9920917]
[1724333386611,10.0,2630.0,2629.9,25.34895085]
[1724333387244,10.0,2630.0,2629.9,24.9920917]
[1724333387741,12.3046,2630.0,2629.9,18.91766336]
[1724333388605,12.3046,2630.0,2629.9,13.16524336]
[1724333388797,12.3046,2630.0,2629.9,16.96766336]
[1724333394379,12.3046,2630.0,2629.9,16.96766336]
[1724333395686,10.0,2630.0,2629.9,16.96766336]
[1724333395845,10.0,2630.0,2629.9,20.77008336]
[1724333396045,10.0,2630.0,2629.9,22.01467415]
[1724333397499,10.0,2630.0,2629.9,16.96766336]
[1724333397660,12.4405,2630.0,2629.9,16.96766336]
[1724333399362,12.4405,2630.0,2629.9,20.77008336]
[1724333399679,10.0,2630.0,2629.9,20.77008336]
[1724333400592,10.0,2630.0,2629.9,21.12684868]
[1724333400819,10.0,2630.0,2629.9,23.81479755]
[1724333401096,10.0,2630.0,2629.9,23.45803223]
[1724333401451,10.0,2630.0,2629.9,26.81489092]
[1724333402295,10.0,2630.0,2629.9,26.45803223]
[1724333402600,12.366,2630.0,2629.9,22.65561223]
[1724333402800,12.366,2630.0,2629.9,9.36282336]
[1724333403147,12.366,2630.0,2629.9,16.96766336]
[1724333403379,12.366,2630.0,2629.9,9.36282336]
[1724333405467,12.366,2630.0,2629.9,13.16524336]
[1724333405796,12.366,2630.0,2629.9,16.96766336]
[1724333406181,12.366,2630.0,2629.9,18.40972156]
[1724333406352,10.0,2630.0,2629.9,18.40972156]
[1724333407202,10.0,2630.0,2629.9,16.96766336]
[1724333407413,10.0,2630.0,2629.9,9.36282336]
[1724333407414,12.2798,2630.0,2629.9,9.36282336]
[1724333407700,14.27486529,2630.0,2629.9,9.36282336]
[1724333408049,14.27483527,2630.0,2629.9,9.36282336]
[1724333409278,14.27483527,2630.0,2629.9,13.16524336]
[1724333409279,13.87523389,2630.0,2629.9,13.16524336]
[1724333409624,12.2798,2630.0,2629.9,16.96766336]
[1724333409981,13.87523389,2630.0,2629.9,16.96766336]
[1724333410175,14.27483527,2630.0,2629.9,13.16524336]
[1724333410432,13.87503303,2630.0,2629.9,9.36282336]
[1724333410630,14.27483527,2630.0,2629.9,9.36282336]
[1724333412306,12.2798,2630.0,2629.9,9.36282336]
[1724333412508,14.27483527,2630.0,2629.9,13.16524336]
[1724333412689,12.2798,2630.0,2629.9,13.16524336]
[1724333413087,13.87475675,2630.0,2629.9,13.16524336]
[1724333413388,14.27351575,2630.0,2629.9,9.36282336]
[1724333413586,12.2798,2630.0,2629.9,9.36282336]
[1724333415639,14.27303663,2630.0,2629.9,9.36282336]
[1724333415854,14.27303663,2630.0,2629.9,13.16524336]
[1724333415992,12.2798,2630.0,2629.9,13.16524336]
[1724333416346,13.87426473,2630.0,2629.9,16.96766336]
[1724333419554,9.98389472,2630.0,2629.9,21.93468593]
[1724333420646,9.98389472,2630.0,2629.9,24.93468593]
[1724333421438,9.98389472,2630.0,2629.9,21.13226593]
[1724333421763,12.32839472,2630.0,2629.9,13.16524336]
[1724333422160,9.98389472,2630.0,2629.9,13.16524336]
[1724333422370,9.98389472,2630.0,2629.9,16.96766336]
[1724333422715,9.98389472,2630.0,2629.9,20.77008336]
[1724333422967,9.98389472,2630.0,2629.9,22.8470917]
[1724333424200,9.98389472,2630.0,2629.9,32.0175117]
[1724333424817,9.98389472,2630.0,2629.9,32.37381036]
[1724333425135,9.98389472,2630.0,2629.9,32.0175117]
[1724333425632,1.59446473,2631.0,2630.7,3.80126]
[1724333425823,2.35,2631.1,2631.0,3.80083]
[1724333426271,2.35,2631.1,2631.0,7.60166]
[1724333427307,2.35,2631.1,2631.0,3.80083]
[1724333429885,2.4229,2631.3,2631.2,3.80043]
[1724333430593,2.4229,2631.3,2631.1,3.80067]
[1724333431102,2.4229,2631.3,2631.1,3.80061]
[1724333431261,2.4229,2631.3,2631.2,7.60108]
[1724333431444,0.02877359,2631.4,2631.2,7.60108]
[1724333431445,0.02877359,2631.4,2631.3,3.8004]
[1724333432199,0.02877359,2631.4,2631.3,7.6008]
[1724333432859,0.02877359,2631.4,2631.3,12.541345]
[1724333433063,0.02877359,2631.4,2631.3,8.740945]
[1724333434248,0.02877359,2631.4,2631.3,18.839945]
[1724333434483,0.02877359,2631.4,2631.3,22.49120273]
[1724333434961,0.02877359,2631.4,2631.3,23.04120273]
[1724333435687,3.59e-06,2631.4,2631.3,23.04120273]
[1724333436016,2.2658,2632.5,2632.4,3.79881]
[1724333436496,2.2658,2632.5,2632.4,7.59762]
[1724333437148,2.3657,2632.9,2632.2,3.79907]
[1724333437349,2.3657,2632.9,2632.6,7.59684]
[1724333437549,2.3657,2632.9,2632.2,0.625077]
[1724333437748,2.3657,2632.9,2632.8,7.59646]
[1724333437989,2.3657,2632.9,2632.1,4.681]
[1724333438191,2.3657,2632.9,2631.9,7.45075773]
[1724333438192,2.3657,2632.9,2632.7,3.79831]
[1724333438398,2.3657,2632.9,2632.5,3.79857]
[1724333438999,2.3657,2632.9,2632.3,3.79887]
[1724333439330,4.681,2633.4,2632.3,3.79887]
[1724333439331,2.3744,2633.0,2632.3,3.79887]
[1724333439551,2.3744,2633.0,2632.3,3.79885]
[1724333440137,2.3744,2633.0,2632.3,3.79884]
[1724333440339,2.3744,2633.0,2632.5,3.79865]
[1724333440938,2.3744,2633.0,2632.5,7.5973]
[1724333441103,2.3744,2633.0,2632.5,3.79865]
[1724333441487,2.3744,2633.0,2632.3,3.79889]
[1724333441690,2.3744,2633.0,2632.3,3.79887]
[1724333441989,2.3744,2633.0,2632.3,3.79886]
[1724333442447,3.79839,2632.7,2632.1,3.79917]
[1724333442661,2.4313,2632.6,2632.0,3.79934]
[1724333443191,2.4313,2632.6,2632.1,3.79924]
[1724333443439,2.4313,2632.6,2632.1,3.79915]
[1724333444015,2.4313,2632.6,2631.9,7.59886]
[1724333444230,2.4313,2632.6,2631.5,4.36490533]
[1724333444231,3.79904,2632.3,2631.6,3.79985]
[1724333444445,2.3203,2632.2,2631.6,3.79985]
[1724333444655,2.3203,2632.0,2631.4,3.80021]
[1724333444863,2.3203,2632.0,2631.4,3.80016]
[1724333445148,2.3203,2632.0,2631.5,3.79999]
[1724333445644,2.3203,2632.0,2631.8,3.79957]
[1724333445819,2.3203,2632.0,2631.9,3.79953]
[1724333446856,2.3203,2632.0,2631.9,7.59906]
[1724333447054,2.3126,2632.2,2631.9,3.79953]
[1724333447223,2.3126,2632.2,2632.1,3.79922]
[1724333449010,2.2728,2632.7,2632.2,3.79909]
[1724333449612,2.2728,2632.7,2632.0,7.59863]
[1724333449844,2.2728,2632.7,2632.1,3.79924]
[1724333450048,6.07118,2632.7,2632.0,3.79926]
[1724333450252,2.4249,2632.6,2632.0,3.79926]
[1724333450906,2.4249,2632.6,2632.0,7.59855]
[1724333451107,2.4249,2632.6,2632.1,3.79916]
[1724333451466,2.4249,2632.6,2632.2,3.79906]
[1724333452149,2.4249,2632.6,2632.2,3.79901]
[1724333454130,2.4249,2632.6,2632.2,7.59803]
[1724333454336,2.4249,2632.6,2632.3,3.79895]
[1724333455744,2.4249,2632.6,2632.2,7.59802]
[1724333455939,2.4249,2632.6,2632.3,3.79895]
[1724333456142,2.4249,2632.6,2632.4,3.79872]
[1724333456460,2.4249,2632.6,2632.4,7.59744]
[1724333456638,4.681,2633.2,2632.4,7.59744]
[1724333456639,2.293,2633.2,2632.6,3.79841]
[1724333456824,2.293,2633.2,2632.2,3.79907]
[1724333456825,2.293,2633.2,2632.8,3.7982]
[1724333457026,2.293,2633.2,2633.0,3.79793]
[1724333457445,2.293,2633.2,2633.0,3.79786]
[1724333458431,2.293,2633.2,2632.8,3.79814]
[1724333458432,2.293,2633.2,2632.8,7.59625]
[1724333458637,2.293,2633.2,2632.9,3.79805]
[1724333459876,2.293,2633.2,2632.4,6.08208]
[1724333459877,2.293,2633.2,2633.0,3.79787]
[1724333460174,2.293,2633.2,2633.0,3.79785]
[1724333460720,2.293,2633.2,2632.8,3.79811]
[1724333460950,2.293,2633.2,2632.6,3.79849]
[1724333461212,2.293,2633.2,2632.6,3.79844]
[1724333461379,2.293,2633.2,2632.8,3.79823]
[1724333461535,2.293,2633.2,2632.9,3.79807]
[1724333461738,2.293,2633.2,2632.1,3.0]
[1724333461739,2.293,2633.2,2633.0,3.79783]
[1724333461968,2.293,2633.2,2633.1,3.7978]
[1724333462168,2.4537,2633.5,2633.1,3.7978]
[1724333462322,2.4537,2633.5,2633.0,3.79783]
[1724333462876,2.4537,2633.5,2632.8,3.79816]
[1724333463239,2.4537,2633.5,2633.0,3.79794]
[1724333463739,2.4537,2633.5,2632.8,3.79811]
[1724333463938,2.4465,2633.4,2632.4,3.79877]
[1724333464256,2.4465,2633.4,2632.9,3.79797]
[1724333464982,2.4465,2633.4,2632.8,3.79812]
[1724333465190,2.4465,2633.4,2632.9,3.79808]
[1724333466272,2.4465,2633.4,2633.0,3.79794]
[1724333466775,2.4465,2633.4,2633.0,3.7979]
[1724333466932,2.4465,2633.4,2632.9,7.59609]
[1724333467128,2.4465,2633.4,2632.5,6.79858]
[1724333467390,2.4536,2632.7,2632.2,3.79902]
[1724333467530,2.4536,2632.6,2632.0,3.7993]
[1724333467734,2.4536,2632.6,2632.2,3.79909]
[1724333468040,2.4536,2632.6,2631.5,2.92625603]
[1724333468041,2.4536,2632.6,2632.0,3.79933]
[1724333468750,2.4536,2632.6,2632.1,3.79914]
[1724333469065,2.4536,2632.6,2632.1,3.79923]
[1724333469783,2.4536,2632.6,2632.2,3.79908]
[1724333470148,2.4536,2632.6,2632.0,3.79927]
[1724333470491,2.4921,2632.5,2631.8,3.79957]
[1724333470781,2.4083,2632.3,2631.6,3.79985]
[1724333470981,2.4083,2632.3,2631.1,0.50852382]
[1724333470982,2.4083,2632.0,2631.3,3.8003]
[1724333471193,2.4137,2631.8,2631.2,3.80054]
[1724333471477,2.4137,2631.8,2631.2,3.80045]
[1724333471692,2.4137,2631.8,2630.6,4.31381603]
[1724333471693,2.4137,2631.8,2631.5,3.80002]
[1724333471848,2.4137,2631.8,2631.5,3.79999]
[1724333472186,2.4137,2631.8,2631.1,3.80064]
[1724333472519,2.4137,2631.8,2631.2,3.80053]
[1724333472648,2.3131,2631.6,2630.7,3.80126]
[1724333472848,3.79992,2631.7,2629.9,11.4398317]
[1724333472849,2.4353,2631.3,2630.6,3.80135]
[1724333473035,3.80056,2631.2,2630.3,3.80182]
[1724333473239,2.4308,2630.9,2630.1,3.8021]
[1724333473491,2.4308,2630.8,2630.1,3.8021]
[1724333473952,2.4308,2630.8,2630.3,3.80173]
[1724333475150,2.4308,2630.8,2630.4,3.80168]
[1724333476193,2.4308,2630.8,2630.5,3.80155]
[1724333476403,2.4308,2630.8,2630.3,3.80183]
[1724333476613,2.4308,2630.8,2629.9,13.16519336]
[1724333476954,3.504,2630.9,2629.9,13.16519336]
[1724333476955,6.13807,2630.5,2629.9,9.36282336]
[1724333477204,2.3549,2630.5,2629.9,9.36282336]
[1724333477520,6.15648,2630.5,2629.9,9.36282336]
[1724333477654,0.39662863,2630.6,2629.9,9.36282336]
[1724333477873,2.75152863,2630.6,2630.1,3.80212]
[1724333478070,2.75152863,2630.6,2629.9,9.36282336]
[1724333478071,2.3549,2630.6,2630.2,3.80197]
[1724333478273,2.3549,2630.8,2629.9,9.36282336]
[1724333478971,0.55,2630.7,2629.9,9.36282336]
[1724333479183,3.80163,2630.5,2629.9,9.36282336]
[1724333479390,2.4183,2630.4,2629.9,9.36282336]
[1724333479955,2.4183,2630.4,2629.9,13.16523336]
[1724333480192,2.4183,2630.4,2629.9,16.96754336]
[1724333480376,2.4183,2630.4,2630.0,3.80227]
[1724333480995,2.4183,2630.4,2630.1,3.80212]
[1724333481171,2.4183,2630.4,2629.9,13.16514336]
[1724333481372,2.4183,2630.4,2630.1,3.80211]
[1724333481609,2.4183,2630.4,2630.1,3.80202]
[1724333481810,2.4183,2630.4,2630.1,3.802]
[1724333482016,2.4183,2630.4,2630.2,3.80189]
[1724333482216,2.4183,2630.4,2629.9,13.16517336]
[1724333482217,2.4183,2630.4,2630.0,3.80216]
[1724333483067,2.4183,2630.4,2629.9,13.16517336]
[1724333483068,2.4183,2630.4,2630.1,3.8021]
[1724333483299,2.4183,2630.4,2630.1,3.80202]
[1724333484780,2.4183,2630.4,2630.2,3.80197]
[1724333485120,2.4183,2630.4,2630.1,3.80202]
[1724333485484,2.374,2630.8,2630.3,3.80176]
[1724333486645,2.374,2630.8,2630.4,3.80169]
[1724333486939,2.374,2630.8,2630.5,7.60295]
[1724333487143,2.374,2630.8,2630.7,3.80126]
[1724333487703,2.374,2630.8,2630.6,3.8014]
[1724333487911,2.374,2630.8,2630.4,3.80162]
[1724333488150,2.374,2630.8,2630.2,3.80191]
[1724333488318,2.4009,2631.2,2630.4,3.80164]
[1724333488520,3.80078,2631.1,2630.5,0.380164]
[1724333488840,2.4009,2631.0,2630.4,3.80167]
[1724333490440,2.3296,2630.7,2630.0,3.8022]
[1724333490605,2.3296,2630.6,2630.0,3.80219]
[1724333491155,2.3296,2630.6,2629.9,9.36282336]
[1724333491305,2.4854,2630.2,2629.9,9.36282336]
[1724333491531,3.80227,2630.1,2629.9,9.36282336]
[1724333491754,2.4854,2630.0,2629.9,9.36282336]
[1724333492781,2.4854,2630.0,2628.9,2.2793]
[1724333492782,1.3407,2629.9,2627.6,2.2793]
[1724333492941,6.544,2630.1,2628.3,3.80465]
[1724333492942,5.14402,2629.3,2628.3,3.80465]
[1724333493149,3.80365,2629.1,2628.3,3.80465]
[1724333493458,8.64802,2629.3,2627.9,3.80526]
[1724333493459,3.80374,2629.0,2627.9,3.80526]
[1724333493660,3.80412,2628.8,2627.9,3.80526]
[1724333493902,3.80412,2628.8,2627.8,3.80544]
[1724333493903,3.80443,2628.6,2627.8,3.80544]
[1724333494087,3.80443,2628.6,2627.6,3.80567]
[1724333494088,6.28878,2628.5,2627.6,3.80567]
[1724333494398,6.28878,2628.5,2627.5,3.80585]
[1724333494399,3.80475,2628.3,2627.5,3.80585]
[1724333494599,3.504,2628.1,2627.1,3.80642]
[1724333494730,0.55,2628.5,2625.8,3.80824]
[1724333494731,3.504,2627.5,2625.8,6.18154]
[1724333495077,17.11948,2627.5,2626.0,3.80794]
[1724333495429,17.11948,2627.5,2626.1,3.80787]
[1724333495630,9.80959,2627.5,2626.2,0.07615599]
[1724333495831,9.80959,2627.5,2625.8,2.3733]
[1724333495832,13.31359,2627.5,2625.8,2.3733]
[1724333496061,13.31359,2627.5,2626.3,7.6152]
[1724333496328,17.11948,2627.5,2626.2,3.80778]
[1724333496628,3.80634,2627.2,2626.2,3.80778]
[1724333496835,3.80605,2627.4,2626.3,0.380778]
[1724333497144,3.55,2627.3,2625.8,2.3733]
[1724333497363,3.55,2627.3,2626.4,3.80736]
[1724333497564,2.4537,2627.5,2625.9,3.80818]
[1724333497565,3.0,2627.4,2626.2,3.80771]
[1724333497742,5.4537,2627.5,2626.8,3.8068]
[1724333498381,5.4537,2627.5,2626.7,3.80704]
[1724333498532,5.4537,2627.5,2626.8,3.80681]
[1724333498872,5.4537,2627.5,2626.7,4.568478]
[1724333498873,5.4537,2627.5,2626.7,3.80704]
[1724333499104,14.35264376,2627.5,2626.5,3.8073]
[1724333499286,0.55,2627.4,2626.6,3.80718]
[1724333499480,0.55,2627.4,2626.7,3.80705]
[1724333500011,5.84974376,2627.5,2626.7,3.80705]
[1724333500012,9.65565376,2627.5,2626.7,3.80705]
[1724333500517,9.65565376,2627.5,2626.5,3.8073]
[1724333500680,4.35604,2627.4,2626.5,3.8073]
[1724333500861,4.35604,2627.4,2626.6,3.80719]
[1724333501473,0.55,2627.4,2626.6,3.80719]
[1724333502011,0.55,2627.4,2626.8,3.80689]
[1724333502225,5.84974376,2627.5,2626.8,3.80689]
[1724333502505,5.84974376,2627.5,2626.6,4.568655]
[1724333502506,6.2596,2627.5,2626.7,3.80705]
[1724333502719,6.65532584,2627.5,2626.7,3.80705]
[1724333503009,6.65532584,2627.5,2626.8,3.80687]
[1724333503010,2.84942584,2627.5,2626.8,3.80687]
[1724333503218,6.65532584,2627.5,2626.7,4.6446345]
[1724333503364,3.80606,2627.4,2626.7,3.80705]
[1724333503570,6.65532584,2627.5,2626.6,3.80709]
[1724333503870,3.80606,2627.4,2626.6,3.80709]
[1724333504567,6.65532584,2627.5,2626.4,3.80738]
[1724333504568,3.80643,2627.2,2626.4,3.80738]
[1724333504976,3.80648,2627.1,2626.4,3.80738]
[1724333505522,2.3216,2626.8,2626.2,3.80771]
[1724333505818,2.3216,2626.8,2626.0,3.808]
[1724333505969,3.8072,2626.6,2625.8,3.80826]
[1724333506321,3.80718,2626.7,2625.6,3.8086]
[1724333506322,3.8076,2626.4,2625.6,3.8086]
[1724333506530,3.80744,2626.5,2625.6,3.8086]
[1724333506531,3.80774,2626.3,2625.6,3.8086]
[1724333506687,2.3216,2626.8,2625.0,3.8094]
[1724333506688,3.80853,2625.7,2625.0,3.8094]
[1724333507221,3.80836,2625.8,2625.1,3.8093]
[1724333507369,8.50527,2625.9,2625.2,3.80921]
[1724333507370,12.31363,2625.9,2625.2,3.80921]
[1724333507587,12.31363,2625.9,2625.0,3.8094]
[1724333507588,3.80838,2625.8,2625.1,3.80937]
[1724333507768,8.50527,2625.9,2625.2,3.80922]
[1724333508005,3.80853,2625.7,2625.0,3.8094]
[1724333508209,3.8084,2625.8,2625.1,3.80935]
[1724333508427,3.8084,2625.8,2624.6,3.81004]
[1724333508428,2.4611,2625.6,2624.8,3.80975]
[1724333508607,2.4611,2625.6,2624.8,4.571682]
[1724333508773,2.4611,2625.6,2625.0,3.8095]
[1724333509521,2.4611,2625.6,2625.1,3.80936]
[1724333509814,2.4611,2625.6,2625.0,3.8095]
[1724333510021,2.4611,2625.6,2625.0,3.8094]
[1724333510215,2.4611,2625.6,2625.1,3.80925]
[1724333510370,2.2646,2626.0,2625.3,3.809]
[1724333510567,5.2646,2626.0,2625.5,3.80879]
[1724333511374,5.2646,2626.0,2625.3,3.809]
[1724333511375,5.2646,2626.0,2625.3,3.80896]
[1724333511887,3.8083,2625.9,2625.3,3.80896]
[1724333512090,3.80854,2625.7,2625.1,3.80929]
[1724333512398,3.80854,2625.7,2624.9,3.80954]
[1724333512399,3.80866,2625.6,2624.9,3.80954]
[1724333512614,3.80886,2625.5,2624.9,3.80954]
[1724333512907,4.697,2625.9,2625.3,3.80897]
[1724333512908,3.80828,2625.9,2625.3,3.80897]
[1724333513225,3.80822,2625.9,2625.2,3.80914]
[1724333513395,3.80822,2625.9,2625.3,3.80907]
[1724333514043,3.80823,2625.9,2625.3,3.80905]
[1724333514812,9.0727,2626.0,2625.4,3.80893]
[1724333515417,9.46809449,2626.0,2625.4,3.80893]
[1724333515619,3.80823,2625.9,2625.3,3.80904]
[1724333515820,3.80837,2625.8,2625.0,3.80943]
[1724333516046,3.80852,2625.7,2625.1,3.80937]
[1724333516849,5.65999449,2626.0,2624.5,3.0]
[1724333517034,5.65999449,2626.0,2625.3,3.80897]
[1724333517253,9.0727,2626.0,2625.3,3.80897]
[1724333517941,5.2646,2626.0,2625.4,3.80884]
[1724333518285,9.07275,2626.0,2625.4,3.80884]
[1724333518590,0.59723595,2625.9,2625.5,3.80878]
[1724333518739,0.59723595,2625.9,2625.5,0.4189677]
[1724333519091,10.00269,2626.7,2625.8,3.80836]
[1724333519393,10.00269,2626.7,2626.2,3.80768]
[1724333519394,0.5971607,2626.4,2626.2,3.80768]
[1724333519697,6.05703,2627.0,2626.3,3.80761]
[1724333519984,6.05703,2627.0,2625.5,2.4157]
[1724333519985,2.2503,2627.0,2626.0,3.80803]
[1724333520169,3.80612,2627.4,2626.8,3.80678]
[1724333520398,2.2503,2627.5,2626.8,3.80678]
[1724333520534,3.80627,2627.3,2626.6,7.61419]
[1724333520735,4.20164903,2627.4,2626.1,6.18757]
[1724333520736,3.80679,2626.9,2626.2,3.80769]
[1724333520984,0.39553903,2627.4,2626.4,3.80738]
[1724333520985,3.80658,2627.1,2626.4,3.80738]
[1724333521184,0.39553903,2627.4,2626.6,2.4695]
[1724333521387,0.39553903,2627.4,2626.8,3.80679]
[1724333521685,0.39553903,2627.4,2627.0,3.8065]
[1724333521844,0.39553903,2627.4,2627.1,3.80647]
[1724333522199,6.16657,2627.9,2627.3,3.80618]
[1724333522652,6.16656,2627.9,2627.1,3.80641]
[1724333522854,3.80558,2627.8,2627.1,7.61278]
[1724333523101,2.75649808,2627.9,2626.6,6.27664]
[1724333523261,2.75649808,2627.9,2627.4,3.80593]
[1724333523642,2.3612,2627.9,2627.2,3.80622]
[1724333523845,2.3612,2627.9,2627.4,3.80592]
[1724333524041,2.3612,2627.9,2627.4,7.61186]
[1724333524304,2.3612,2627.9,2626.7,0.927664]
[1724333524305,0.39524872,2628.1,2627.6,3.80575]
[1724333524516,9.6547,2628.4,2627.8,3.80536]
[1724333524517,5.85,2628.4,2627.8,3.80536]
[1724333524800,2.81,2628.4,2627.9,3.80531]
[1724333524999,2.81,2628.4,2627.5,3.80582]
[1724333525346,3.80523,2628.0,2627.3,3.8061]
[1724333525691,3.80523,2628.0,2627.2,3.80629]
[1724333526197,3.8054,2627.9,2627.3,3.80617]
[1724333526486,6.15663,2628.0,2627.3,3.80617]
[1724333526873,3.0,2628.3,2627.3,0.76124]
[1724333527040,3.0,2628.3,2627.0,3.80651]
[1724333527248,3.80546,2627.8,2627.0,3.80651]
[1724333527440,6.15686,2627.8,2627.0,3.80651]
[1724333527700,3.80598,2627.5,2626.8,3.80683]
[1724333528044,7.697,2627.7,2626.4,3.80739]
[1724333528361,7.697,2627.7,2626.2,0.618739]
[1724333528362,3.80676,2627.0,2626.2,3.80766]
[1724333528763,3.80722,2626.6,2625.7,2.4246]
[1724333528946,3.80735,2626.5,2625.8,3.80827]
[1724333529165,6.09992,2626.6,2625.8,3.80827]
[1724333529374,2.2927,2626.6,2626.0,3.80806]
[1724333529787,9.09991,2626.6,2625.8,3.80827]
[1724333529963,6.09991,2626.6,2625.8,3.80827]
[1724333530159,2.2927,2626.6,2626.0,3.80797]
[1724333530690,2.2927,2626.6,2626.0,3.75797]
[1724333531087,3.80751,2626.4,2625.6,3.80858]
[1724333531291,3.80764,2626.3,2625.6,3.80858]
[1724333531504,3.80764,2626.3,2625.5,3.80877]
[1724333531735,3.80738,2626.5,2625.7,3.80848]